fUSD/lending_fUSD_20240616
["ID","MTS","AMOUNT","RATE_DAILY","PERIOD"]
[329628356,1718514766733,-500.0,0.00024657,3]
[329628357,1718514766752,-500.0,0.00024657,3]
[329628358,1718514766775,-843.71,0.00024657,3]
[329628359,1718514766808,-500.0,0.00024657,3]
[329628360,1718514766841,-500.0,0.00024657,3]
[329628361,1718514766877,-513.2,0.00024657,3]
[329628362,1718514766891,-1056.47,0.00024657,3]
[329628363,1718514766920,-906.02,0.00024657,3]
[329628364,1718514766967,-500.08,0.00024657,3]
[329628365,1718514766991,-500.0,0.00024657,3]
[329628366,1718514767018,-500.0,0.00024657,3]
[329628367,1718514767035,-959.23,0.00024657,3]
[329628368,1718514767065,-631.23,0.00024657,3]
[329628369,1718514767095,-500.0,0.00024657,3]
[329628370,1718514767113,-666.35,0.00024657,3]
[329628371,1718514767131,-500.0,0.00024657,3]
[329628372,1718514767191,-500.0,0.00024657,3]
[329628373,1718514767244,-639.86,0.00024657,3]
[329628374,1718514767272,-500.0,0.00024657,3]
[329628375,1718514767287,-664.8,0.00024657,3]
[329628376,1718514767301,-1051.67,0.00024657,3]
[329628377,1718514767330,-961.09,0.00024657,3]
[329628378,1718514767342,-500.0,0.00024657,3]
[329628379,1718514767354,-500.0,0.00024657,3]
[329628380,1718514767367,-1195.84,0.00024657,3]
[329628381,1718514767393,-500.0,0.00024657,3]
[329628382,1718514767415,-770.75,0.00024657,3]
[329628383,1718514767429,-893.17,0.00024657,3]
[329628384,1718514767445,-409.04813791,0.00024657,3]
[329628385,1718514767469,-886.11,0.00024657,3]
[329628386,1718514767496,-500.0,0.00024657,3]
[329628387,1718514767516,-618.77,0.00024657,3]
[329628388,1718514767541,-500.0,0.00024657,3]
[329628389,1718514767577,-500.0,0.00024657,3]
[329628390,1718514767600,-985.78,0.00024657,3]
[329628391,1718514767644,-835.26,0.00024657,3]
[329628392,1718514767666,-513.36,0.00024657,3]
[329628393,1718514767691,-501.85,0.00024657,3]
[329628394,1718514767704,-989.9,0.00024657,3]
[329628395,1718514767716,-500.0,0.00024657,3]
[329628396,1718514767729,-572.39,0.00024657,3]
[329628397,1718514767763,-500.0,0.00024657,3]
[329628398,1718514767773,-500.0,0.00024657,3]
[329628399,1718514767786,-634.14,0.00024657,3]
[329628400,1718514767800,-500.0,0.00024657,3]
[329628401,1718514767814,-508.55,0.00024657,3]
[329628402,1718514767826,-578.78,0.00024657,3]
[329628403,1718514767852,-500.0,0.00024657,3]
[329628404,1718514767864,-500.0,0.00024657,3]
[329628405,1718514767875,-623.1,0.00024657,3]
[329628406,1718514767894,-558.36,0.00024657,3]
[329628407,1718514767923,-500.0,0.00024657,3]
[329628408,1718514767940,-692.22,0.00024657,3]
[329628409,1718514767978,-500.0,0.00024657,3]
[329628410,1718514767996,-500.0,0.00024657,3]
[329628411,1718514768009,-679.49,0.00024657,3]
[329628412,1718514768021,-546.36,0.00024657,3]
[329628413,1718514768051,-313.10453922,0.00024657,3]
[329628414,1718514768062,-500.0,0.00024657,3]
[329628415,1718514768084,-500.0,0.00024657,3]
[329628416,1718514768096,-500.0,0.00024657,3]
[329628417,1718514768124,-500.0,0.00024657,3]
[329628418,1718514768136,-500.0,0.00024657,3]
[329628419,1718514768148,-611.71,0.00024657,3]
[329628420,1718514768173,-500.0,0.00024657,3]
[329628421,1718514768205,-1146.72,0.00024657,3]
[329628422,1718514768242,-500.0,0.00024657,3]
[329628423,1718514768255,-576.7321246,0.00024657,3]
[329628424,1718514768269,-500.0,0.00024657,3]
[329628425,1718514768285,-500.0,0.00024657,3]
[329628426,1718514768320,-500.0,0.00024657,3]
[329628427,1718514768340,-490.37274939,0.00024657,3]
[329628428,1718514768365,-898.73,0.00024657,3]
[329628429,1718514768385,-607.26,0.00024657,3]
[329628430,1718514768404,-500.0,0.00024657,3]
[329628431,1718514768418,-778.55,0.00024657,3]
[329628432,1718514768442,-500.0,0.00024657,3]
[329628433,1718514768485,-500.0,0.00024657,3]
[329628434,1718514768526,-510.7,0.00024657,3]
[329628435,1718514768562,-500.0,0.00024657,3]
[329628436,1718514768586,-738.65,0.00024657,3]
[329628437,1718514768608,-595.17,0.00024657,3]
[329628438,1718514768653,-500.0,0.00024657,3]
[329628439,1718514768678,-698.26,0.00024657,3]
[329628440,1718514768691,-500.0,0.00024657,3]
[329628441,1718514768718,-500.0,0.00024657,3]
[329628442,1718514768742,-500.0,0.00024657,3]
[329628443,1718514768784,-500.0,0.00024657,3]
[329628444,1718514768825,-500.0,0.00024657,3]
[329628445,1718514768837,-742.17,0.00024657,3]
[329628446,1718514768848,-832.09,0.00024657,3]
[329628447,1718514768858,-500.0,0.00024657,3]
[329628448,1718514768868,-500.0,0.00024657,3]
[329628449,1718514768879,-669.49,0.00024657,3]
[329628450,1718514768892,-500.0,0.00024657,3]
[329628451,1718514768902,-500.0,0.00024657,3]
[329628452,1718514768913,-847.82,0.00024657,3]
[329628453,1718514768924,-984.98,0.00024657,3]
[329628454,1718514768934,-500.0,0.00024657,3]
[329628455,1718514768946,-272.09440291,0.00024657,3]
[329628456,1718514768957,-500.0,0.00024657,3]
[329628457,1718514768982,-381.7695825,0.00024657,3]
[329628458,1718514768993,-500.0,0.00024657,3]
[329628459,1718514769006,-652.56,0.00024657,3]
[329628460,1718514769017,-500.0,0.00024657,3]
[329628461,1718514769028,-500.0,0.00024657,3]
[329628462,1718514769049,-504.32930265,0.00024657,3]
[329628463,1718514769076,-843.09,0.00024657,3]
[329628464,1718514769093,-535.33,0.00024657,3]
[329628465,1718514769106,-1201.34,0.00024657,3]
[329628466,1718514769120,-500.0,0.00024657,3]
[329628467,1718514769131,-909.26,0.00024657,3]
[329628468,1718514769153,-1002.88,0.00024657,3]
[329628469,1718514769192,-500.0,0.00024657,3]
[329628470,1718514769207,-500.0,0.00024657,3]
[329628471,1718514769248,-778.38,0.00024657,3]
[329628472,1718514769313,-500.0,0.00024657,3]
[329628473,1718514769338,-1202.7,0.00024657,3]
[329628474,1718514769354,-500.0,0.00024657,3]
[329628475,1718514769365,-500.0,0.00024657,3]
[329628476,1718514769458,-776.34,0.00024657,3]
[329628477,1718514769485,-500.0,0.00024657,3]
[329628478,1718514769502,-544.11,0.00024657,3]
[329628479,1718514769515,-500.0,0.00024657,3]
[329628480,1718514769529,-527.2,0.00024657,3]
[329628481,1718514769542,-500.0,0.00024657,3]
[329628482,1718514769565,-675.42,0.00024657,3]
[329628483,1718514769588,-500.0,0.00024657,3]
[329628484,1718514769626,-557.21086008,0.00024657,3]
[329628485,1718514769641,-500.0,0.00024657,3]
[329628486,1718514769653,-500.0,0.00024657,3]
[329628487,1718514769670,-500.0,0.00024657,3]
[329628488,1718514769682,-544.17913471,0.00024657,3]
[329628489,1718514769701,-343.84,0.00024657,3]
[329628490,1718514769714,-500.0,0.00024657,3]
[329628491,1718514769740,-400.59474997,0.00024657,3]
[329628492,1718514769755,-500.0,0.00024657,3]
[329628493,1718514769772,-1832.91,0.00024657,3]
[329628494,1718514769796,-500.0,0.00024657,3]
[329628495,1718514769814,-551.74,0.00024657,3]
[329628496,1718514769839,-500.0,0.00024657,3]
[329628497,1718514769866,-567.88,0.00024657,3]
[329628498,1718514769878,-901.11,0.00024657,3]
[329628499,1718514769891,-681.26,0.00024657,3]
[329628500,1718514769909,-500.0,0.00024657,3]
[329628501,1718514769930,-726.69,0.00024657,3]
[329628502,1718514769945,-545.46,0.00024657,3]
[329628503,1718514769963,-3304.19,0.00024657,3]
[329628504,1718514769975,-736.37,0.00024657,3]
[329628505,1718514769995,-500.0,0.00024657,3]
[329628506,1718514770007,-500.0,0.00024657,3]
[329628507,1718514770022,-500.0,0.00024657,3]
[329628508,1718514770071,-500.0,0.00024657,3]
[329628509,1718514770093,-500.0,0.00024657,3]
[329628510,1718514770129,-500.0,0.00024657,3]
[329628511,1718514770163,-500.0,0.00024657,3]
[329628512,1718514770188,-500.0,0.00024657,3]
[329628513,1718514770202,-500.0,0.00024657,3]
[329628514,1718514770230,-997.85,0.00024657,3]
[329628515,1718514770242,-14230.41,0.00024657,3]
[329628516,1718514770253,-530.5,0.00024657,3]
[329628517,1718514770288,-500.0,0.00024657,3]
[329628518,1718514770301,-1006.75,0.00024657,3]
[329628519,1718514770314,-500.0,0.00024657,3]
[329628520,1718514770364,-500.0,0.00024657,3]
[329628521,1718514770381,-500.0,0.00024657,3]
[329628522,1718514770393,-500.0,0.00024657,3]
[329628523,1718514770406,-696.29,0.00024657,3]
[329628524,1718514770424,-500.0,0.00024657,3]
[329628525,1718514770436,-759.3,0.00024657,3]
[329628526,1718514770458,-500.0,0.00024657,3]
[329628527,1718514770470,-1157.82,0.00024657,3]
[329628528,1718514770488,-674.57,0.00024657,3]
[329628529,1718514770539,-566.27,0.00024657,3]
[329628530,1718514770557,-1539.31,0.00024657,3]
[329628531,1718514770570,-500.0,0.00024657,3]
[329628532,1718514770581,-943.14,0.00024657,3]
[329628533,1718514770595,-659.14,0.00024657,3]
[329628534,1718514770614,-500.0,0.00024657,3]
[329628535,1718514770628,-534.43518837,0.00024657,3]
[329628536,1718514770656,-560.32,0.00024657,3]
[329628537,1718514770687,-614.56,0.00024657,3]
[329628538,1718514770707,-218.96518206,0.00024657,3]
[329628539,1718514770729,-500.0,0.00024657,3]
[329628540,1718514770756,-7764.92,0.00024657,3]
[329628541,1718514770800,-557.31,0.00024657,3]
[329628542,1718514770815,-552.59,0.00024657,3]
[329628543,1718514770834,-661.73,0.00024657,3]
[329628544,1718514770847,-611.43,0.00024657,3]
[329628545,1718514770859,-1729.68,0.00024657,3]
[329628546,1718514770873,-500.0,0.00024657,3]
[329628547,1718514770883,-674.64,0.00024657,3]
[329628548,1718514770896,-151.62822846,0.00024657,2]
[329628549,1718514770910,-1354.36,0.00024657,3]
[329628550,1718514770921,-604.17,0.00024657,3]
[329628551,1718514770945,-664.59,0.00024657,3]
[329628552,1718514770964,-10271.42,0.00024657,3]
[329628553,1718514770976,-412.00921586,0.00024657,3]
[329628554,1718514770988,-900.1,0.00024657,3]
[329628555,1718514771028,-500.0,0.00024657,3]
[329628556,1718514771040,-500.0,0.00024657,3]
[329628557,1718514771068,-500.0,0.00024657,3]
[329628558,1718514771092,-818.66,0.00024657,3]
[329628559,1718514771124,-500.0,0.00024657,3]
[329628560,1718514771148,-1612.07,0.00024657,3]
[329628561,1718514771160,-1755.9,0.00024657,3]
[329628562,1718514771180,-611.26,0.00024657,3]
[329628563,1718514771221,-1606.26,0.00024657,3]
[329628564,1718514771232,-4378.33,0.00024657,3]
[329628565,1718514771243,-500.0,0.00024657,3]
[329628566,1718514771255,-500.0,0.00024657,3]
[329628567,1718514771272,-500.0,0.00024657,3]
[329628568,1718514771283,-4916.83,0.00024657,3]
[329628569,1718514771303,-2853.1,0.00024657,3]
[329628570,1718514771344,-500.0,0.00024657,3]
[329628571,1718514771376,-1035.35,0.00024657,3]
[329628572,1718514771400,-500.0,0.00024657,3]
[329628573,1718514771420,-869.12,0.00024657,3]
[329628574,1718514771432,-567.1,0.00024657,3]
[329628575,1718514771480,-578.11,0.00024657,3]
[329628576,1718514771495,-500.0,0.00024657,3]
[329628577,1718514771506,-1538.82,0.00024657,3]
[329628578,1718514771530,-1775.07,0.00024657,3]
[329628579,1718514771584,-2296.48,0.00024657,3]
[329628580,1718514771604,-500.0,0.00024657,3]
[329628581,1718514771617,-964.71,0.00024657,3]
[329628582,1718514771646,-763.71,0.00024657,3]
[329628583,1718514771728,-895.78,0.00024657,3]
[329628584,1718514771804,-642.17,0.00024657,3]
[329628585,1718514771821,-636.93,0.00024657,3]
[329628586,1718514771831,-2443.29,0.00024657,3]
[329628587,1718514771861,-1515.42,0.00024657,3]
[329628588,1718514771892,-500.0,0.00024657,3]
[329628589,1718514771904,-1004.46,0.00024657,3]
[329628590,1718514771928,-803.03,0.00024657,3]
[329628591,1718514771940,-1070.36,0.00024657,3]
[329628592,1718514771952,-923.04,0.00024657,3]
[329628593,1718514771965,-500.0,0.00024657,3]
[329628594,1718514771993,-593.8,0.00024657,3]
[329628595,1718514772005,-797.61,0.00024657,3]
[329628596,1718514772025,-588.71,0.00024657,3]
[329628597,1718514772036,-2230.64,0.00024657,3]
[329628598,1718514772048,-500.0,0.00024657,3]
[329628599,1718514772077,-500.0,0.00024657,3]
[329628600,1718514772092,-9618.01,0.00024657,3]
[329628601,1718514772105,-319.74864816,0.00024657,3]
[329628602,1718514772119,-1061.13,0.00024657,3]
[329628603,1718514772159,-500.0,0.00024657,3]
[329628604,1718514772187,-500.0,0.00024657,3]
[329628605,1718514772201,-2383.54,0.00024657,3]
[329628606,1718514772212,-500.0,0.00024657,3]
[329628607,1718514772228,-500.0,0.00024657,3]
[329628608,1718514772242,-860.94,0.00024657,3]
[329628609,1718514772260,-792.78,0.00024657,3]
[329628610,1718514772274,-4216.59,0.00024657,3]
[329628611,1718514772332,-858.57,0.00024657,3]
[329628612,1718514772353,-2109.27,0.00024657,3]
[329628613,1718514772373,-567.07,0.00024657,3]
[329628614,1718514772396,-1400.62,0.00024657,3]
[329628615,1718514772410,-1037.47,0.00024657,3]
[329628616,1718514772439,-500.0,0.00024657,3]
[329628617,1718514772463,-1574.3,0.00024657,3]
[329628618,1718514772477,-2771.95,0.00024657,3]
[329628619,1718514772499,-3713.47,0.00024657,3]
[329628620,1718514772517,-500.0,0.00024657,3]
[329628621,1718514772527,-534.45,0.00024657,3]
[329628622,1718514772541,-1420.21,0.00024657,3]
[329628623,1718514772560,-500.0,0.00024657,3]
[329628624,1718514772575,-500.0,0.00024657,3]
[329628625,1718514772589,-1310.36,0.00024657,3]
[329628626,1718514772618,-500.0,0.00024657,3]
[329628627,1718514772634,-633.25,0.00024657,3]
[329628628,1718514772648,-1378.93,0.00024657,3]
[329628629,1718514772662,-790.92,0.00024657,3]
[329628630,1718514772677,-500.0,0.00024657,3]
[329628631,1718514772704,-636.09,0.00024657,3]
[329628632,1718514772728,-2966.95,0.00024657,3]
[329628633,1718514772756,-712.87,0.00024657,3]
[329628634,1718514772776,-500.0,0.00024657,3]
[329628635,1718514772801,-851.88,0.00024657,3]
[329628636,1718514772853,-827.77,0.00024657,3]
[329628637,1718514772909,-2232.36,0.00024657,3]
[329628638,1718514772922,-860.52,0.00024657,3]
[329628639,1718514772938,-614.18,0.00024657,3]
[329628640,1718514772951,-2707.96,0.00024657,3]
[329628641,1718514772973,-2212.02,0.00024657,3]
[329628642,1718514772993,-500.0,0.00024657,3]
[329628643,1718514773022,-703.42,0.00024657,3]
[329628644,1718514773101,-721.36,0.00024657,3]
[329628645,1718514773151,-4360.28,0.00024657,3]
[329628646,1718514773192,-2177.96,0.00024657,3]
[329628647,1718514773244,-500.0,0.00024657,3]
[329628648,1718514773277,-1356.14,0.00024657,3]
[329628649,1718514773313,-500.0,0.00024657,3]
[329628650,1718514773335,-749.56,0.00024657,3]
[329628651,1718514773360,-1848.29,0.00024657,3]
[329628652,1718514773374,-1211.0,0.00024657,3]
[329628653,1718514773405,-500.0,0.00024657,3]
[329628654,1718514773430,-666.51,0.00024657,3]
[329628655,1718514773464,-1213.86,0.00024657,3]
[329628656,1718514773515,-578.68,0.00024657,3]
[329628657,1718514773529,-2709.96,0.00024657,3]
[329628658,1718514773540,-583.95,0.00024657,3]
[329628659,1718514773558,-500.0,0.00024657,3]
[329628660,1718514773580,-500.0,0.00024657,3]
[329628661,1718514773594,-578.04,0.00024657,3]
[329628662,1718514773616,-795.69,0.00024657,3]
[329628663,1718514773648,-1483.55,0.00024657,3]
[329628664,1718514773680,-790.88,0.00024657,3]
[329628665,1718514773712,-1309.75,0.00024657,3]
[329628666,1718514773734,-500.0,0.00024657,3]
[329628667,1718514773770,-555.11,0.00024657,3]
[329628668,1718514773791,-1243.88,0.00024657,3]
[329628669,1718514773813,-3595.59,0.00024657,3]
[329628670,1718514773828,-500.0,0.00024657,3]
[329628671,1718514773845,-1006.94,0.00024657,3]
[329628672,1718514773858,-1564.83,0.00024657,3]
[329628673,1718514773883,-500.0,0.00024657,3]
[329628674,1718514773898,-1366.9,0.00024657,3]
[329628675,1718514773910,-500.0,0.00024657,3]
[329628676,1718514773923,-799.86,0.00024657,3]
[329628677,1718514773962,-523.6,0.00024657,3]
[329628678,1718514773995,-729.35,0.00024657,3]
[329628679,1718514774009,-2013.29,0.00024657,3]
[329628680,1718514774024,-500.0,0.00024657,3]
[329628681,1718514774039,-1202.1,0.00024657,3]
[329628682,1718514774068,-989.7,0.00024657,3]
[329628683,1718514774084,-1512.39,0.00024657,3]
[329628684,1718514774130,-500.0,0.00024657,3]
[329628685,1718514774170,-500.0,0.00024657,3]
[329628686,1718514774185,-898.42,0.00024657,3]
[329628687,1718514774198,-680.39,0.00024657,3]
[329628688,1718514774213,-525.67,0.00024657,3]
[329628689,1718514774225,-651.97,0.00024657,3]
[329628690,1718514774237,-1084.0,0.00024657,3]
[329628691,1718514774253,-1217.87,0.00024657,3]
[329628692,1718514774266,-4820.64,0.00024657,3]
[329628693,1718514774293,-1818.54,0.00024657,3]
[329628694,1718514774311,-633.1,0.00024657,3]
[329628695,1718514774323,-2630.9,0.00024657,3]
[329628696,1718514774351,-1495.18,0.00024657,3]
[329628697,1718514774370,-500.78,0.00024657,3]
[329628698,1718514774408,-1076.28,0.00024657,3]
[329628699,1718514774477,-500.0,0.00024657,3]
[329628700,1718514774495,-1510.03,0.00024657,3]
[329628701,1718514774517,-1023.85,0.00024657,3]
[329628702,1718514774553,-514.32,0.00024657,3]
[329628703,1718514774589,-500.0,0.00024657,3]
[329628704,1718514774606,-801.98,0.00024657,3]
[329628705,1718514774620,-5728.5,0.00024657,3]
[329628706,1718514774655,-501.51,0.00024657,3]
[329628707,1718514774696,-526.07,0.00024657,3]
[329628708,1718514774720,-1246.39,0.00024657,3]
[329628709,1718514774736,-12175.18,0.00024657,3]
[329628710,1718514774754,-1613.0,0.00024657,3]
[329628711,1718514774784,-918.72,0.00024657,3]
[329628712,1718514774798,-1529.61,0.00024657,3]
[329628713,1718514774824,-2489.26,0.00024657,3]
[329628714,1718514774855,-771.85,0.00024657,3]
[329628715,1718514774880,-151.0,0.00024658,7]
[329628716,1718514774911,-151.0,0.00024658,7]
[329628717,1718514774924,-151.0,0.00024658,7]
[329628718,1718514774975,-151.0,0.00024658,7]
[329628719,1718514774989,-151.0,0.00024658,7]
[329628720,1718514775018,-151.0,0.00024658,7]
[329628721,1718514775072,-151.0,0.00024658,7]
[329628722,1718514775086,-151.0,0.00024658,7]
[329628723,1718514775103,-151.0,0.00024658,7]
[329628724,1718514775122,-151.0,0.00024658,7]
[329628725,1718514775158,-151.0,0.00024658,7]
[329628726,1718514775181,-151.0,0.00024658,7]
[329628727,1718514775199,-294.032162,0.00024658,7]
[329628728,1718514775217,-168.551366,0.00024658,7]
[329628729,1718514775231,-168.551366,0.00024658,7]
[329628730,1718514775248,-168.551366,0.00024658,7]
[329628731,1718514775263,-168.551366,0.00024658,7]
[329628732,1718514775276,-168.551366,0.00024658,7]
[329628733,1718514775288,-168.551366,0.00024658,7]
[329628734,1718514775305,-168.551366,0.00024658,7]
[329628735,1718514775325,-168.551366,0.00024658,7]
[329628736,1718514775350,-168.551366,0.00024658,7]
[329628737,1718514775362,-168.551366,0.00024658,7]
[329628738,1718514775374,-168.551366,0.00024658,7]
[329628739,1718514775396,-168.551366,0.00024658,7]
[329628740,1718514775408,-168.551366,0.00024658,7]
[329628741,1718514775431,-168.551366,0.00024658,7]
[329628742,1718514775443,-168.551366,0.00024658,7]
[329628743,1718514775462,-168.551366,0.00024658,7]
[329628744,1718514775505,-168.551366,0.00024658,7]
[329628745,1718514775521,-168.551366,0.00024658,7]
[329628746,1718514775542,-168.551366,0.00024658,7]
[329628747,1718514775555,-168.551369,0.00024658,7]
[329628748,1718514775596,-500.0,0.00024663,2]
[329628749,1718514775608,-150.0,0.00024665,2]
[329628750,1718514775621,-500.0,0.00024671,2]
[329628751,1718514775637,-151.62822846,0.00024675,2]
[329628752,1718514775656,-150.0,0.00024679,2]
[329628753,1718514775682,-500.0,0.0002468,2]
[329628754,1718514775713,-224.15318,0.00024685,2]
[329628755,1718514775728,-500.0,0.00024689,2]
[329628756,1718514775744,-169.09180948,0.00024697,2]
[329628757,1718514775776,-500.0,0.00024698,2]
[329628758,1718514775793,-2181.71,0.000247,2]
[329628759,1718514775807,-689.66855916,0.000247,2]
[329628760,1718514775827,-150.0,0.000247,4]
[329628761,1718514775844,-150.0,0.000247,4]
[329628762,1718514775897,-500.0,0.00024707,2]
[329628763,1718514775924,-150.0,0.00024708,2]
[329628764,1718514775952,-466.66446184,0.00024708,2]
[329628765,1718514775973,-500.0,0.00024715,2]
[329628766,1718514775986,-600.0,0.00024723,4]
[329628767,1718514775997,-500.0,0.00024724,2]
[329628768,1718514776011,-160.02955024,0.00024728,2]
[329628769,1718514776050,-500.0,0.00024733,2]
[329628770,1718514776069,-500.0,0.00024742,2]
[329628771,1718514776085,-152.83323731,0.00024745,2]
[329628772,1718514776112,-198.0,0.00024747,15]
[329628773,1718514776129,-500.0,0.00024751,2]
[329628774,1718514776141,-150.0,0.00024753,2]
[329628775,1718514776155,-198.0,0.00024757,15]
[329628776,1718514776172,-150.0,0.00024757,2]
[329628777,1718514776200,-500.0,0.00024759,2]
[329628778,1718514776230,-198.0,0.00024767,15]
[329628779,1718514776250,-152.0,0.00024767,13]
[329628780,1718514776263,-154.95527305,0.00024768,2]
[329628781,1718514776277,-500.0,0.00024768,2]
[329628782,1718514776318,-500.0,0.00024777,2]
[329628783,1718514776376,-150.0,0.00024777,2]
[329628784,1718514776402,-151.62822846,0.00024779,2]
[329628785,1718514776441,-689.66855916,0.00024784,2]
[329628786,1718514776470,-500.0,0.00024786,2]
[329628787,1718514776484,-151.62822846,0.00024788,2]
[329628788,1718514776529,-500.0,0.00024795,2]
[329628789,1718514776553,-22279.37708168,0.00024798,2]
[329628790,1718514776584,-22279.37708162,0.00024798,2]
[329628791,1718514776599,-22279.37708162,0.00024798,2]
[329628792,1718514776616,-14073.36472562,0.00024798,2]
[329628793,1718514777356,-1085.72,0.00023013,3]
[329628794,1718514777368,-543.18397851,0.00024798,2]
[329628795,1718514777396,-1651.21014409,0.00024798,2]
[329628796,1718514777435,-805.42,0.00022739,3]
[329628797,1718514777447,-90.44543096,0.00023287,3]
[329628798,1718514777693,-415.0,0.00021113,2]
[329628799,1718514777709,-633.34273564,0.00021113,2]
[329628800,1718514777726,-805.42,0.00023013,3]
[329628801,1718514777740,-712.4119108,0.00023287,3]
[329628802,1718514777829,-2043.4,0.00021917,2]
[329628803,1718514777848,-2043.4,0.00022191,3]
[329628804,1718514777868,-282.86265824,0.00023287,3]
[329628805,1718514777881,-805.42,0.00023287,3]
[329628806,1718514777908,-1085.72,0.00023561,3]
[329628807,1718514777935,-805.42,0.00023561,3]
[329628808,1718514777958,-1085.72,0.00023835,3]
[329628809,1718514777970,-805.42,0.00023835,3]
[329628810,1718514777986,-743.04163164,0.00024109,3]
[329628814,1718515532884,262.408,0.00025,30]
[329628815,1718515764189,-209.64860058,0.00016189,2]
[329628816,1718515764221,-169.71,0.0001619,2]
[329628817,1718515764252,-2456.7535948,0.00016643,2]
[329628818,1718515764301,-730.51,0.00017524,2]
[329628819,1718515764346,-500.0,0.00018,2]
[329628820,1718515801289,958.58113052,0.000171,2]
[329628821,1718515817211,343.01818257,0.000171,2]
[329628839,1718515834070,-1106.21,0.00019418,2]
[329628840,1718515834084,-6731.23893848,0.00019433,2]
[329628841,1718515834110,-404.4999995,0.00019433,2]
[329628842,1718515834128,-704.92261432,0.00019433,2]
[329628843,1718515834160,-2159.3384477,0.00019433,2]
[329628844,1718515834173,-172.99134185,0.0001945,2]
[329628845,1718515834193,-272.63865815,0.0001945,2]
[329628846,1718515834207,-440.43500451,0.0001945,2]
[329628847,1718515834233,-893.59727248,0.0001945,2]
[329628848,1718515834283,-54.67772301,0.0001945,2]
[329628849,1718515834296,-150.0,0.00019452,2]
[329628850,1718515834313,-200.0,0.00019487,2]
[329628851,1718515834331,-2751.0,0.0001951,2]
[329628852,1718515834366,-1669.54945239,0.0001951,2]
[329628853,1718515834382,-4024.61054761,0.0001951,2]
[329628854,1718515834423,-7750.27856996,0.00019526,2]
[329628855,1718515834445,-4899.12143004,0.00019526,2]
[329628856,1718515834459,-263.22,0.00019537,2]
[329628857,1718515834471,-250.0,0.00019574,2]
[329628858,1718515834526,-263.22,0.00019591,2]
[329628859,1718515834538,-250.0,0.00019637,2]
[329628860,1718515834571,-263.22,0.00019645,2]
[329628861,1718515834584,-1857.85,0.00019665,2]
[329628862,1718515834616,-3606.63323371,0.00019666,2]
[329628863,1718515834660,-1026.55676629,0.00019666,2]
[329628864,1718515834673,-209.64860058,0.00019688,2]
[329628865,1718515834708,-2908.06171889,0.00019689,2]
[329628866,1718515834730,-6241.41226186,0.00019689,2]
[329628867,1718515834774,-611.8,0.00019689,2]
[329628868,1718515834788,-489.34999,0.00019689,2]
[329628869,1718515834843,-2380.55745511,0.00019689,2]
[329628870,1718515834858,-3164.75000067,0.00019689,2]
[329628871,1718515834895,-347.96815075,0.00019689,2]
[329628872,1718515834992,-7746.10042272,0.00019689,2]
[329628873,1718515835003,-1852.42,0.00019696,2]
[329628874,1718515835017,-263.22,0.00019698,2]
[329628875,1718515835027,-263.22,0.00019752,2]